[Event "*** SCC Grand Prix: Titled Tuesday Blitz"]
[Site "Chess.com"]
[Date "2020.06.02"]
[Round "2"]
[White "mamonika"]
[Black "saisree"]
[Result "0-1"]
[WhiteElo "1967"]
[BlackElo "2356"]
[TimeControl "180+1"]
[EndTime "10:17:14 PDT"]
[Termination "saisree won on time"]

1. e4 {[%clk 0:03:00.9]} 1... c6 {[%clk 0:02:58.7]} 2. d4 {[%clk 0:03:00.4]}
2... d5 {[%clk 0:02:58.6]} 3. exd5 {[%clk 0:03:01.3]} 3... cxd5 {[%clk 0:02:59]}
4. Bd3 {[%clk 0:03:01.9]} 4... Nc6 {[%clk 0:02:59.1]} 5. c3 {[%clk 0:03:01.4]}
5... Nf6 {[%clk 0:02:59.6]} 6. Bf4 {[%clk 0:02:59]} 6... Bg4 {[%clk 0:02:59.1]}
7. Qb3 {[%clk 0:02:56.4]} 7... Qd7 {[%clk 0:02:59.3]} 8. Nd2 {[%clk 0:02:55.6]}
8... e6 {[%clk 0:02:57.5]} 9. Ngf3 {[%clk 0:02:54.3]} 9... Bd6 {[%clk
0:02:54.8]} 10. Bxd6 {[%clk 0:02:52.5]} 10... Qxd6 {[%clk 0:02:55]} 11. O-O
{[%clk 0:02:31.2]} 11... O-O {[%clk 0:02:54.6]} 12. Rfe1 {[%clk 0:02:30.6]}
12... Nd7 {[%clk 0:02:47.9]} 13. h3 {[%clk 0:02:12.4]} 13... Bh5 {[%clk
0:02:46.1]} 14. Re3 {[%clk 0:01:58.5]} 14... a6 {[%clk 0:02:42.5]} 15. Rae1
{[%clk 0:01:56.5]} 15... b5 {[%clk 0:02:39]} 16. Ne5 {[%clk 0:01:52.9]} 16...
Ncxe5 {[%clk 0:02:39]} 17. dxe5 {[%clk 0:01:53]} 17... Qc7 {[%clk 0:02:35.3]}
18. Qb4 {[%clk 0:01:48]} 18... a5 {[%clk 0:02:29.5]} 19. Bxh7+ {[%clk
0:01:28.9]} 19... Kxh7 {[%clk 0:02:28.2]} 20. Qh4 {[%clk 0:01:28.9]} 20... g6
{[%clk 0:02:20.5]} 21. g4 {[%clk 0:01:18.4]} 21... Qd8 {[%clk 0:02:20.5]} 22.
Qg3 {[%clk 0:01:14.8]} 22... b4 {[%clk 0:02:08.4]} 23. gxh5 {[%clk 0:01:08.8]}
23... gxh5 {[%clk 0:02:07.8]} 24. Kh2 {[%clk 0:01:03.6]} 24... Rg8 {[%clk
0:02:07.9]} 25. Qf4 {[%clk 0:00:59.3]} 25... Rg7 {[%clk 0:02:03]} 26. Rg3 {[%clk
0:00:43.5]} 26... Nf8 {[%clk 0:01:56.4]} 27. Reg1 {[%clk 0:00:40.2]} 27... Ng6
{[%clk 0:01:55]} 28. Qf3 {[%clk 0:00:33]} 28... Qh4 {[%clk 0:01:53.5]} 29. Rg5
{[%clk 0:00:23.3]} 29... Kh6 {[%clk 0:01:45.4]} 30. Qe3 {[%clk 0:00:19.9]} 30...
Kh7 {[%clk 0:01:22.4]} 31. Nf3 {[%clk 0:00:16.5]} 31... Qe4 {[%clk 0:01:13.2]}
32. Rxh5+ {[%clk 0:00:16.3]} 32... Kg8 {[%clk 0:01:13.8]} 33. Qxe4 {[%clk
0:00:10.8]} 33... dxe4 {[%clk 0:01:13.8]} 34. Nd2 {[%clk 0:00:09.3]} 34... bxc3
{[%clk 0:01:13.8]} 35. bxc3 {[%clk 0:00:08.8]} 35... Rc8 {[%clk 0:00:58]} 36.
Nxe4 {[%clk 0:00:08.9]} 36... Rc4 {[%clk 0:00:58.7]} 37. Rg4 {[%clk 0:00:08.2]}
37... Kf8 {[%clk 0:00:51.1]} 38. Nf6 {[%clk 0:00:02.5]} 38... Rxc3 {[%clk
0:00:43.1]} 0-1

[Event "*** SCC Grand Prix: Titled Tuesday Blitz"]
[Site "Chess.com"]
[Date "2020.06.02"]
[Round "2"]
[White "RobertoJBM"]
[Black "monalize"]
[Result "1/2-1/2"]
[WhiteElo "2629"]
[BlackElo "2300"]
[TimeControl "180+1"]
[EndTime "10:17:15 PDT"]
[Termination "Game drawn by agreement"]

1. d4 {[%clk 0:03:00.9]} 1... Nf6 {[%clk 0:02:58.8]} 2. c4 {[%clk 0:03:00.9]}
2... d6 {[%clk 0:02:59.1]} 3. Nf3 {[%clk 0:03:00.3]} 3... g6 {[%clk 0:02:58.5]}
4. Nc3 {[%clk 0:03:00.4]} 4... Bg7 {[%clk 0:02:58.6]} 5. e4 {[%clk 0:03:00.5]}
5... O-O {[%clk 0:02:58.6]} 6. Be2 {[%clk 0:03:01.1]} 6... Nbd7 {[%clk
0:02:57.5]} 7. O-O {[%clk 0:03:01]} 7... c6 {[%clk 0:02:57.2]} 8. Re1 {[%clk
0:03:01.1]} 8... e5 {[%clk 0:02:56.2]} 9. Bf1 {[%clk 0:03:01.1]} 9... exd4
{[%clk 0:02:55]} 10. Nxd4 {[%clk 0:03:02]} 10... Re8 {[%clk 0:02:53.3]} 11. Nb3
{[%clk 0:02:21.5]} 11... Qe7 {[%clk 0:02:51.3]} 12. Bf4 {[%clk 0:02:16.1]} 12...
Ne5 {[%clk 0:02:50.2]} 13. f3 {[%clk 0:02:10.5]} 13... Nfd7 {[%clk 0:02:45.2]}
14. Qd2 {[%clk 0:02:06.7]} 14... Nb6 {[%clk 0:02:43.5]} 15. Na5 {[%clk 0:01:50]}
15... Be6 {[%clk 0:02:39.2]} 16. Rad1 {[%clk 0:01:40.7]} 16... Nbxc4 {[%clk
0:02:27.6]} 17. Nxc4 {[%clk 0:01:39.3]} 17... Nxc4 {[%clk 0:02:25.7]} 18. Bxc4
{[%clk 0:01:39]} 18... Bxc4 {[%clk 0:02:26.1]} 19. Bxd6 {[%clk 0:01:34.2]} 19...
Qe6 {[%clk 0:02:24.6]} 20. b3 {[%clk 0:01:31.2]} 20... Ba6 {[%clk 0:02:23.6]}
21. e5 {[%clk 0:01:29.6]} 21... Rad8 {[%clk 0:02:16.5]} 22. f4 {[%clk
0:01:25.2]} 22... f6 {[%clk 0:01:59.1]} 23. Ne4 {[%clk 0:01:08.2]} 23... fxe5
{[%clk 0:01:58.2]} 24. Nc5 {[%clk 0:01:07.2]} 24... Qf5 {[%clk 0:01:51]} 25.
Nxa6 {[%clk 0:00:58.9]} 25... bxa6 {[%clk 0:01:50.5]} 26. Qb4 {[%clk 0:00:35.8]}
26... exf4 {[%clk 0:01:30]} 27. Rxe8+ {[%clk 0:00:19.6]} 27... Rxe8 {[%clk
0:01:29]} 28. Qxf4 {[%clk 0:00:20.5]} 28... Qxf4 {[%clk 0:01:10.4]} 29. Bxf4
{[%clk 0:00:21.4]} 29... Kf7 {[%clk 0:01:10.3]} 30. Rd7+ {[%clk 0:00:18.7]}
30... Re7 {[%clk 0:01:09.4]} 31. Rxe7+ {[%clk 0:00:18.8]} 31... Kxe7 {[%clk
0:01:08.5]} 32. Be3 {[%clk 0:00:19.7]} 32... Kd6 {[%clk 0:01:05.1]} 33. Bxa7
{[%clk 0:00:20.2]} 33... Kd5 {[%clk 0:01:05.2]} 34. Kf1 {[%clk 0:00:19.7]} 34...
Ke4 {[%clk 0:01:05.3]} 35. Ke2 {[%clk 0:00:19.8]} 35... Be5 {[%clk 0:01:04.5]}
36. h3 {[%clk 0:00:19.5]} 36... h5 {[%clk 0:01:03.2]} 37. Be3 {[%clk 0:00:19.5]}
37... Bd6 {[%clk 0:00:58.2]} 38. Bf2 {[%clk 0:00:19.7]} 38... Be5 {[%clk
0:00:57.9]} 39. Be3 {[%clk 0:00:20]} 1/2-1/2

[Event "*** SCC Grand Prix: Titled Tuesday Blitz"]
[Site "Chess.com"]
[Date "2020.06.02"]
[Round "2"]
[White "freshfoodcompany"]
[Black "Carnivoras"]
[Result "0-1"]
[WhiteElo "2209"]
[BlackElo "2624"]
[TimeControl "180+1"]
[EndTime "10:17:15 PDT"]
[Termination "Carnivoras won on time"]

1. d4 {[%clk 0:03:00.9]} 1... d5 {[%clk 0:03:00.1]} 2. c4 {[%clk 0:03:00.3]}
2... c6 {[%clk 0:03:00.6]} 3. Nc3 {[%clk 0:03:00.1]} 3... e6 {[%clk 0:03:00.8]}
4. e4 {[%clk 0:02:57.3]} 4... dxe4 {[%clk 0:03:00.6]} 5. Nxe4 {[%clk 0:02:57]}
5... Bb4+ {[%clk 0:03:01.2]} 6. Bd2 {[%clk 0:02:54.3]} 6... Qxd4 {[%clk
0:03:01.5]} 7. Qe2 {[%clk 0:02:51.4]} 7... Bxd2+ {[%clk 0:02:50.7]} 8. Nxd2
{[%clk 0:02:49.9]} 8... Nf6 {[%clk 0:02:32.7]} 9. Rb1 {[%clk 0:02:22.2]} 9...
O-O {[%clk 0:02:30.6]} 10. Ngf3 {[%clk 0:02:20.5]} 10... Qd8 {[%clk 0:02:15.5]}
11. g3 {[%clk 0:02:16.4]} 11... b6 {[%clk 0:02:15.6]} 12. Bg2 {[%clk 0:02:15.9]}
12... Bb7 {[%clk 0:02:16.1]} 13. O-O {[%clk 0:02:15.9]} 13... c5 {[%clk
0:02:15.8]} 14. Rfd1 {[%clk 0:02:15.1]} 14... Nbd7 {[%clk 0:02:13.5]} 15. Ne5
{[%clk 0:01:47.4]} 15... Bxg2 {[%clk 0:02:01.3]} 16. Kxg2 {[%clk 0:01:45.1]}
16... Qc7 {[%clk 0:01:56]} 17. Nxd7 {[%clk 0:01:31]} 17... Qxd7 {[%clk
0:01:52.2]} 18. Qf3 {[%clk 0:01:17.1]} 18... Qd4 {[%clk 0:01:42.1]} 19. b3
{[%clk 0:01:05.2]} 19... Rad8 {[%clk 0:01:30.3]} 20. Nf1 {[%clk 0:01:00.2]}
20... Qe4 {[%clk 0:01:30]} 21. Ne3 {[%clk 0:00:55.2]} 21... h6 {[%clk 0:01:25]}
22. h4 {[%clk 0:00:40.3]} 22... Rd4 {[%clk 0:01:18.3]} 23. Qxe4 {[%clk 0:00:33]}
23... Nxe4 {[%clk 0:01:17.6]} 24. Rxd4 {[%clk 0:00:32.6]} 24... cxd4 {[%clk
0:01:17.9]} 25. Nc2 {[%clk 0:00:31.8]} 25... Rd8 {[%clk 0:01:15.5]} 26. Rd1
{[%clk 0:00:29]} 26... e5 {[%clk 0:01:15.4]} 27. f4 {[%clk 0:00:22.6]} 27... Nc3
{[%clk 0:00:55.6]} 28. Rd2 {[%clk 0:00:19.3]} 28... d3 {[%clk 0:00:53.9]} 29.
Ne1 {[%clk 0:00:13.7]} 29... e4 {[%clk 0:00:53.5]} 30. Kf2 {[%clk 0:00:13.7]}
30... Nxa2 {[%clk 0:00:46.8]} 31. Ke3 {[%clk 0:00:09.6]} 31... Nc1 {[%clk
0:00:46.1]} 32. b4 {[%clk 0:00:06.8]} 32... f5 {[%clk 0:00:38.4]} 33. Nc2 {[%clk
0:00:02.3]} 33... Nb3 {[%clk 0:00:35.5]} 34. Rd1 {[%clk 0:00:02.1]} 34... dxc2
{[%clk 0:00:35.4]} 35. Rxd8+ {[%clk 0:00:03]} 35... Kh7 {[%clk 0:00:35.4]} 0-1

[Event "*** SCC Grand Prix: Titled Tuesday Blitz"]
[Site "Chess.com"]
[Date "2020.06.02"]
[Round "2"]
[White "Thipsay"]
[Black "nonsopolo1"]
[Result "1-0"]
[WhiteElo "2453"]
[BlackElo "2238"]
[TimeControl "180+1"]
[EndTime "10:17:15 PDT"]
[Termination "Thipsay won by resignation"]

1. e4 {[%clk 0:03:00.9]} 1... c5 {[%clk 0:02:54.3]} 2. Nf3 {[%clk 0:03:00.7]}
2... Nc6 {[%clk 0:02:54.4]} 3. d4 {[%clk 0:03:00.7]} 3... cxd4 {[%clk
0:02:54.4]} 4. Nxd4 {[%clk 0:03:00.9]} 4... g6 {[%clk 0:02:53.1]} 5. Nc3 {[%clk
0:02:59.9]} 5... Bg7 {[%clk 0:02:52.8]} 6. Be3 {[%clk 0:02:59.7]} 6... Nf6
{[%clk 0:02:52.4]} 7. Be2 {[%clk 0:02:58]} 7... O-O {[%clk 0:02:51.4]} 8. Nb3
{[%clk 0:02:57.9]} 8... a5 {[%clk 0:02:48]} 9. a4 {[%clk 0:02:57]} 9... Nb4
{[%clk 0:02:37]} 10. O-O {[%clk 0:02:44.4]} 10... d5 {[%clk 0:02:33.9]} 11. e5
{[%clk 0:02:43.8]} 11... Ne8 {[%clk 0:02:29.7]} 12. f4 {[%clk 0:02:43.1]} 12...
Bf5 {[%clk 0:02:28.6]} 13. Nd4 {[%clk 0:02:41.7]} 13... Bd7 {[%clk 0:02:18.3]}
14. Ncb5 {[%clk 0:02:35.5]} 14... Nc7 {[%clk 0:02:09.3]} 15. c3 {[%clk
0:02:30.1]} 15... Nxb5 {[%clk 0:02:02.7]} 16. axb5 {[%clk 0:02:29.3]} 16... Nc6
{[%clk 0:01:32.2]} 17. bxc6 {[%clk 0:02:28.4]} 17... bxc6 {[%clk 0:01:33.1]} 18.
Nb3 {[%clk 0:02:25.5]} 18... f6 {[%clk 0:01:30]} 19. exf6 {[%clk 0:02:23]} 19...
exf6 {[%clk 0:01:26.6]} 20. Bc5 {[%clk 0:02:21.9]} 20... Re8 {[%clk 0:01:26.3]}
21. Nd4 {[%clk 0:02:19.6]} 21... Qb8 {[%clk 0:01:19.4]} 22. Qc2 {[%clk
0:02:09.6]} 22... Bh6 {[%clk 0:01:17.8]} 23. f5 {[%clk 0:01:57.7]} 23... Be3+
{[%clk 0:00:55.1]} 24. Kh1 {[%clk 0:01:56.8]} 24... g5 {[%clk 0:00:55.1]} 25.
Bh5 {[%clk 0:01:51.1]} 25... Re4 {[%clk 0:00:52.4]} 26. Rae1 {[%clk 0:01:44.8]}
26... Rh4 {[%clk 0:00:40.4]} 27. g4 {[%clk 0:01:28.5]} 27... Bf4 {[%clk
0:00:33.3]} 28. Re2 {[%clk 0:01:22.5]} 28... a4 {[%clk 0:00:26.1]} 29. Ne6
{[%clk 0:01:20.9]} 29... Be5 {[%clk 0:00:22.8]} 30. Bg1 {[%clk 0:01:17.2]} 30...
a3 {[%clk 0:00:22.5]} 31. bxa3 {[%clk 0:01:15.5]} 31... Rxa3 {[%clk 0:00:22.1]}
32. Bd4 {[%clk 0:01:12.2]} 32... Bxd4 {[%clk 0:00:19]} 33. cxd4 {[%clk
0:01:11.3]} 33... Rah3 {[%clk 0:00:17.7]} 34. Rff2 {[%clk 0:01:09.3]} 34... Qa7
{[%clk 0:00:12.2]} 35. Qd2 {[%clk 0:01:06.7]} 35... Qa1+ {[%clk 0:00:11.2]} 36.
Re1 {[%clk 0:01:06.6]} 36... Qa3 {[%clk 0:00:08.5]} 37. Nxg5 {[%clk 0:01:04.3]}
37... Qg3 {[%clk 0:00:04.6]} 38. Nxh3 {[%clk 0:01:02.7]} 1-0

[Event "*** SCC Grand Prix: Titled Tuesday Blitz"]
[Site "Chess.com"]
[Date "2020.06.02"]
[Round "2"]
[White "Alohamora11"]
[Black "Chess2019Player"]
[Result "0-1"]
[WhiteElo "2403"]
[BlackElo "2193"]
[TimeControl "180+1"]
[EndTime "10:17:15 PDT"]
[Termination "Chess2019Player won by resignation"]

1. e4 {[%clk 0:03:00.9]} 1... e6 {[%clk 0:02:59.4]} 2. d4 {[%clk 0:03:00.1]}
2... d5 {[%clk 0:02:55.7]} 3. Nc3 {[%clk 0:02:58.6]} 3... Bb4 {[%clk 0:02:51.2]}
4. Ne2 {[%clk 0:02:58.9]} 4... Nf6 {[%clk 0:02:47.2]} 5. e5 {[%clk 0:02:49.7]}
5... Nfd7 {[%clk 0:02:46.6]} 6. a3 {[%clk 0:02:49.5]} 6... Be7 {[%clk
0:02:46.2]} 7. b4 {[%clk 0:02:42.6]} 7... b6 {[%clk 0:02:44.9]} 8. b5 {[%clk
0:02:15.8]} 8... a6 {[%clk 0:02:40.4]} 9. Ng3 {[%clk 0:01:48.3]} 9... axb5
{[%clk 0:02:39.4]} 10. Bxb5 {[%clk 0:01:43.7]} 10... c6 {[%clk 0:02:39.2]} 11.
Qg4 {[%clk 0:01:17.8]} 11... g6 {[%clk 0:02:27.5]} 12. Be2 {[%clk 0:01:13.4]}
12... c5 {[%clk 0:02:27]} 13. Bh6 {[%clk 0:00:57]} 13... cxd4 {[%clk 0:02:24.1]}
14. Nb5 {[%clk 0:00:56.1]} 14... Nxe5 {[%clk 0:02:17.5]} 15. Qxd4 {[%clk
0:00:45.3]} 15... Nbc6 {[%clk 0:02:14.5]} 16. Qd2 {[%clk 0:00:37.6]} 16... Bf6
{[%clk 0:02:12.4]} 17. h4 {[%clk 0:00:30.6]} 17... Nf3+ {[%clk 0:02:07.5]} 18.
Bxf3 {[%clk 0:00:26.8]} 18... Bxa1 {[%clk 0:02:07.8]} 19. h5 {[%clk 0:00:19.3]}
19... Ba6 {[%clk 0:02:04.2]} 20. a4 {[%clk 0:00:18.8]} 20... Qf6 {[%clk
0:01:30.1]} 21. hxg6 {[%clk 0:00:17.8]} 21... Bxb5 {[%clk 0:01:24.7]} 22. axb5
{[%clk 0:00:13.3]} 22... Bc3 {[%clk 0:01:24]} 23. bxc6 {[%clk 0:00:11.1]} 23...
Bxd2+ {[%clk 0:01:18.2]} 24. Kxd2 {[%clk 0:00:12]} 24... hxg6 {[%clk 0:01:17.1]}
25. Ne2 {[%clk 0:00:07.7]} 25... Rxh6 {[%clk 0:01:15.7]} 26. Rxh6 {[%clk
0:00:07.3]} 26... Qg5+ {[%clk 0:01:16.2]} 27. Kd3 {[%clk 0:00:07.8]} 27... Qxh6
{[%clk 0:01:16.6]} 28. Nd4 {[%clk 0:00:08.5]} 28... Qf4 {[%clk 0:01:12.6]} 29.
g3 {[%clk 0:00:08.1]} 29... Ra3+ {[%clk 0:01:08.3]} 30. c3 {[%clk 0:00:07.2]}
30... Qc1 {[%clk 0:01:06.6]} 31. Nb5 {[%clk 0:00:07.5]} 31... Qb1+ {[%clk
0:01:01.6]} 32. Kd4 {[%clk 0:00:05.4]} 32... Qxb5 {[%clk 0:01:01.2]} 33. c7
{[%clk 0:00:06]} 33... Qc4+ {[%clk 0:00:59.1]} 34. Ke5 {[%clk 0:00:06.3]} 34...
Qxc7+ {[%clk 0:00:59]} 35. Kf6 {[%clk 0:00:07.2]} 35... Qxc3+ {[%clk 0:00:56.6]}
36. Kg5 {[%clk 0:00:06.8]} 36... Qxf3 {[%clk 0:00:56.5]} 37. g4 {[%clk
0:00:07.7]} 37... Qxf2 {[%clk 0:00:52.7]} 38. Kh6 {[%clk 0:00:08.6]} 38... Rh3+
{[%clk 0:00:49.1]} 39. Kg7 {[%clk 0:00:09.5]} 39... Qd4+ {[%clk 0:00:48.1]} 0-1

[Event "*** SCC Grand Prix: Titled Tuesday Blitz"]
[Site "Chess.com"]
[Date "2020.06.02"]
[Round "2"]
[White "Stronger1799"]
[Black "EugeneRougon"]
[Result "0-1"]
[WhiteElo "2365"]
[BlackElo "2657"]
[TimeControl "180+1"]
[EndTime "10:17:16 PDT"]
[Termination "EugeneRougon won on time"]

1. e4 {[%clk 0:02:32.6]} 1... d6 {[%clk 0:02:55.6]} 2. d4 {[%clk 0:02:32.6]}
2... g6 {[%clk 0:02:55.5]} 3. Nc3 {[%clk 0:02:33.1]} 3... Nf6 {[%clk 0:02:54.6]}
4. h3 {[%clk 0:02:32.2]} 4... Bg7 {[%clk 0:02:51.5]} 5. Nf3 {[%clk 0:02:32.5]}
5... O-O {[%clk 0:02:50.6]} 6. Be2 {[%clk 0:02:33.1]} 6... a6 {[%clk 0:02:40.9]}
7. a4 {[%clk 0:02:31.8]} 7... Nc6 {[%clk 0:02:40.7]} 8. O-O {[%clk 0:02:31.5]}
8... e5 {[%clk 0:02:40.6]} 9. Be3 {[%clk 0:02:31.3]} 9... exd4 {[%clk
0:02:37.4]} 10. Nxd4 {[%clk 0:02:30.9]} 10... Re8 {[%clk 0:02:37.7]} 11. Nxc6
{[%clk 0:02:26]} 11... bxc6 {[%clk 0:02:37.4]} 12. Bf3 {[%clk 0:02:25.3]} 12...
Rb8 {[%clk 0:02:35.3]} 13. Rb1 {[%clk 0:02:24.7]} 13... Be6 {[%clk 0:02:25.7]}
14. Re1 {[%clk 0:02:23.8]} 14... Nd7 {[%clk 0:02:19.9]} 15. Be2 {[%clk
0:02:22.1]} 15... Ne5 {[%clk 0:02:16]} 16. Bxa6 {[%clk 0:02:20.1]} 16... c5
{[%clk 0:01:57.1]} 17. Nd5 {[%clk 0:02:15.9]} 17... c6 {[%clk 0:01:43.7]} 18.
Nf4 {[%clk 0:02:08.9]} 18... Bc4 {[%clk 0:01:42.2]} 19. Bxc4 {[%clk 0:02:01.9]}
19... Nxc4 {[%clk 0:01:43.1]} 20. Bc1 {[%clk 0:01:05]} 20... Nxb2 {[%clk
0:01:30.8]} 21. Bxb2 {[%clk 0:00:46.4]} 21... Bxb2 {[%clk 0:01:30.3]} 22. Qd3
{[%clk 0:00:22.3]} 22... Be5 {[%clk 0:01:22.6]} 23. Ne2 {[%clk 0:00:21.5]} 23...
Qa5 {[%clk 0:00:54]} 24. f4 {[%clk 0:00:18.4]} 24... Bg7 {[%clk 0:00:22.4]} 25.
Qxd6 {[%clk 0:00:14.1]} 25... Rxb1 {[%clk 0:00:23]} 26. Rxb1 {[%clk 0:00:13.2]}
26... Qxa4 {[%clk 0:00:23.6]} 27. e5 {[%clk 0:00:07.8]} 27... Qxc2 {[%clk
0:00:22.5]} 0-1

[Event "*** SCC Grand Prix: Titled Tuesday Blitz"]
[Site "Chess.com"]
[Date "2020.06.02"]
[Round "2"]
[White "DeGrootteZ"]
[Black "HElissalt"]
[Result "1-0"]
[WhiteElo "2626"]
[BlackElo "2216"]
[TimeControl "180+1"]
[EndTime "10:17:17 PDT"]
[Termination "DeGrootteZ won on time"]

1. e4 {[%clk 0:03:00.9]} 1... d6 {[%clk 0:02:57.1]} 2. d4 {[%clk 0:03:00.5]}
2... Nf6 {[%clk 0:02:56.2]} 3. Nc3 {[%clk 0:03:00.7]} 3... e5 {[%clk 0:02:54]}
4. Nf3 {[%clk 0:03:00]} 4... Nbd7 {[%clk 0:02:53]} 5. Bc4 {[%clk 0:02:59.3]}
5... Be7 {[%clk 0:02:50]} 6. a4 {[%clk 0:02:58]} 6... O-O {[%clk 0:02:49.1]} 7.
O-O {[%clk 0:02:58.4]} 7... c6 {[%clk 0:02:32.5]} 8. Re1 {[%clk 0:02:53.7]} 8...
a5 {[%clk 0:02:31.6]} 9. h3 {[%clk 0:02:53.5]} 9... Nb6 {[%clk 0:02:28.2]} 10.
Bb3 {[%clk 0:02:53.2]} 10... Nfd7 {[%clk 0:02:27.3]} 11. Be3 {[%clk 0:02:52.6]}
11... exd4 {[%clk 0:02:19.2]} 12. Nxd4 {[%clk 0:02:53.5]} 12... Nc5 {[%clk
0:02:18.5]} 13. Qf3 {[%clk 0:02:53.2]} 13... Nxb3 {[%clk 0:02:07.9]} 14. cxb3
{[%clk 0:02:52.1]} 14... Nd7 {[%clk 0:01:43.7]} 15. Rad1 {[%clk 0:02:47.4]}
15... Ne5 {[%clk 0:01:27.5]} 16. Qg3 {[%clk 0:02:43.8]} 16... Bh4 {[%clk
0:01:20.6]} 17. Qh2 {[%clk 0:02:43.6]} 17... Be6 {[%clk 0:01:14.7]} 18. Re2
{[%clk 0:02:36.3]} 18... Ng6 {[%clk 0:00:07]} 19. Nxe6 {[%clk 0:02:11.4]} 19...
fxe6 {[%clk 0:00:06.7]} 20. Qxd6 {[%clk 0:02:11.5]} 20... Qf6 {[%clk 0:00:06.7]}
21. Red2 {[%clk 0:01:36.6]} 21... Bg5 {[%clk 0:00:03.9]} 22. Bxg5 {[%clk
0:01:33.8]} 22... Qxg5 {[%clk 0:00:04.2]} 23. Qxe6+ {[%clk 0:01:34.3]} 23... Kh8
{[%clk 0:00:04.6]} 24. Qg4 {[%clk 0:01:34.8]} 24... Qe5 {[%clk 0:00:04]} 25. g3
{[%clk 0:01:30.4]} 25... Qf6 {[%clk 0:00:03.1]} 26. h4 {[%clk 0:01:23.7]} 26...
Ne5 {[%clk 0:00:02.8]} 27. Qe2 {[%clk 0:01:20.9]} 27... Nf3+ {[%clk 0:00:02.9]}
28. Kg2 {[%clk 0:01:21.6]} 28... Nxd2 {[%clk 0:00:02.9]} 29. Rxd2 {[%clk
0:01:22.2]} 29... Rad8 {[%clk 0:00:03.1]} 30. Rxd8 {[%clk 0:01:16.6]} 30... Qxd8
{[%clk 0:00:02.9]} 31. f4 {[%clk 0:01:12.6]} 31... Qd4 {[%clk 0:00:02.9]} 32. e5
{[%clk 0:01:11.4]} 32... Rd8 {[%clk 0:00:02.9]} 33. Kh3 {[%clk 0:01:07.7]} 33...
Qd2 {[%clk 0:00:01.6]} 34. Qc4 {[%clk 0:01:04.8]} 34... Qd3 {[%clk 0:00:01.7]}
35. Ne4 {[%clk 0:00:45.1]} 35... Qxc4 {[%clk 0:00:01.1]} 36. bxc4 {[%clk
0:00:46]} 36... Rd4 {[%clk 0:00:01.2]} 37. Nd6 {[%clk 0:00:45.4]} 37... Rd2
{[%clk 0:00:01.2]} 38. Nxb7 {[%clk 0:00:42.5]} 38... Rxb2 {[%clk 0:00:01.5]} 39.
Nxa5 {[%clk 0:00:42.1]} 1-0